bitfinex-derivatives/quotes_BTCF0:USTF0_20251011
["timestamp","ask_amount","ask_price","bid_price","bid_amount"]
[1760171047567,0.03331473,111070.0,111060.0,1.2688245]
[1760171047775,0.04849771,111080.0,111070.0,0.1028819]
[1760171047968,0.04849771,111080.0,111070.0,1.33455117]
[1760171048267,0.51217555,111120.0,111090.0,0.0899316]
[1760171048469,0.0802241,111120.0,111110.0,0.59630552]
[1760171048870,0.0802241,111120.0,111110.0,0.60923552]
[1760171049171,0.1701355,111120.0,111110.0,0.59630552]
[1760171049366,0.0802241,111120.0,111110.0,0.59630552]
[1760171049768,0.60208015,111130.0,111110.0,0.59630552]
[1760171049972,0.08070689,111130.0,111120.0,0.59630552]
[1760171050271,0.08070689,111130.0,111120.0,0.60923552]
[1760171050471,0.08070689,111140.0,111120.0,0.60923552]
[1760171050666,0.08070689,111140.0,111130.0,0.3608]
[1760171051063,0.17060209,111140.0,111130.0,0.3608]
[1760171051272,0.19198209,111140.0,111130.0,0.3608]
[1760171051472,0.1112752,111140.0,111130.0,0.3608]
[1760171051674,0.53266665,111140.0,111130.0,0.3608]
[1760171052174,0.02138,111140.0,111130.0,0.59630552]
[1760171052472,0.10208689,111140.0,111130.0,0.63069552]
[1760171052773,0.02138,111140.0,111130.0,0.63069552]
[1760171052970,0.02138,111140.0,111130.0,0.67511459]
[1760171053167,0.02138,111140.0,111130.0,0.64072459]
[1760171053168,0.1112752,111140.0,111130.0,0.64072459]
[1760171053371,0.54322665,111140.0,111130.0,0.64072459]
[1760171054376,0.02138,111140.0,111130.0,0.65365459]
[1760171054564,0.02138,111140.0,111130.0,0.67511459]
[1760171055471,0.1112752,111140.0,111130.0,0.64072459]
[1760171055668,0.54322665,111140.0,111130.0,0.64072459]
[1760171055863,0.94322665,111140.0,111130.0,0.3608]
[1760171056068,1.02393354,111140.0,111130.0,0.3608]
[1760171056673,0.94322665,111140.0,111130.0,0.3608]
[1760171057674,0.1218352,111140.0,111130.0,0.59630552]
[1760171057875,0.54322665,111140.0,111130.0,0.59630552]
[1760171058577,0.94322665,111140.0,111130.0,0.3608]
[1760171058969,0.1179014,111120.0,111110.0,0.3608]
[1760171059167,0.53929285,111120.0,111110.0,0.59630552]
[1760171059366,0.1112995,111110.0,111100.0,0.3608]
[1760171059574,0.53269095,111110.0,111100.0,0.59630552]
[1760171060772,0.93269095,111110.0,111100.0,0.59630552]
[1760171062176,0.1112995,111110.0,111100.0,0.60923552]
[1760171062373,0.02138,111110.0,111100.0,1.03069552]
[1760171062967,0.1112995,111110.0,111100.0,1.03069552]
[1760171063386,0.02138,111110.0,111100.0,0.99630552]
[1760171063573,0.1112995,111110.0,111100.0,0.99630552]
[1760171063774,0.53269095,111110.0,111100.0,0.59630552]
[1760171065673,0.1223176,111100.0,111090.0,0.3608]
[1760171065878,0.1183757,111090.0,111080.0,0.3608]
[1760171066079,0.53976715,111090.0,111080.0,0.59630552]
[1760171066378,0.90056715,111090.0,111080.0,0.23550552]
[1760171066675,1.6117738,111080.0,111070.0,0.40472335]
[1760171066875,0.53316525,111080.0,111070.0,0.64022887]
[1760171068975,0.53977525,111080.0,111070.0,0.59630552]
[1760171069281,1.30057525,111080.0,111070.0,0.23550552]
[1760171069471,0.1117981,111050.0,111040.0,0.31917823]
[1760171069780,0.53979955,111050.0,111040.0,0.31917823]
[1760171069977,0.53979955,111050.0,111040.0,0.23550552]
[1760171070279,0.90059955,111050.0,111040.0,0.23550552]
[1760171070475,0.53979955,111050.0,111040.0,0.23550552]
[1760171070683,0.90059955,111050.0,111040.0,0.23550552]
[1760171071075,0.90059955,111050.0,111030.0,0.3608]
[1760171071076,0.1184162,111040.0,111030.0,0.3608]
[1760171071280,0.53980765,111040.0,111030.0,0.59630552]
[1760171071583,0.87745192,111040.0,111030.0,0.59630552]
[1760171072582,1.23825192,111040.0,111030.0,0.23550552]
[1760171073490,0.1227243,111030.0,111020.0,0.04523334]
[1760171073674,0.1227243,111030.0,111020.0,0.28073886]
[1760171074875,0.1227243,111030.0,111020.0,0.64153886]
[1760171076180,0.1227243,111030.0,111020.0,0.59639642]
[1760171077284,0.16828657,111030.0,111020.0,0.59639642]
[1760171077586,0.1227243,111030.0,111020.0,0.59639642]
[1760171078389,0.8835243,111030.0,111020.0,9e-07]
[1760171079185,0.92932933,111030.0,111020.0,9e-07]
[1760171079577,0.92940177,111030.0,111020.0,9e-07]
[1760171080183,1.17940177,111030.0,111020.0,9e-07]
[1760171080383,1.01940177,111030.0,111020.0,9e-07]
[1760171080578,1.46940177,111030.0,111020.0,9e-07]
[1760171080777,1.46932933,111030.0,111020.0,9e-07]
[1760171081579,1.61922933,111030.0,111020.0,9e-07]
[1760171082478,1.21931933,111030.0,111020.0,9e-07]
[1760171082680,1.03932933,111030.0,111020.0,9e-07]
[1760171082881,1.39845505,111030.0,111020.0,9e-07]
[1760171083778,1.79836505,111030.0,111020.0,9e-07]
[1760171084987,1.39836505,111030.0,111020.0,9e-07]
[1760171085290,1.03836505,111030.0,111020.0,0.23550642]
[1760171085589,0.84265002,111030.0,111020.0,0.23550642]
[1760171085885,1.39215002,111030.0,111020.0,0.13050642]
[1760171086980,0.0900086,111000.0,110990.0,0.05876114]
[1760171087184,0.09008307,111000.0,110990.0,0.44108114]
[1760171087387,0.35903572,111010.0,111000.0,0.01378]
[1760171087388,0.31861237,111010.0,111000.0,0.01378]
[1760171087582,0.40861287,111010.0,111000.0,0.01378]
[1760171087787,0.76941287,111010.0,111000.0,0.01378]
[1760171088294,0.0900086,111000.0,110990.0,0.01378]
[1760171088494,0.0900086,111000.0,110990.0,0.01478]
[1760171089382,0.0900086,111000.0,110990.0,0.01578]
[1760171091191,0.1383091,111000.0,110990.0,0.01578]
[1760171091689,0.1383091,111000.0,110990.0,0.01478]
[1760171091890,0.1383091,111000.0,110990.0,0.77558]
[1760171092090,0.1383091,111000.0,110990.0,0.41478]
[1760171092392,0.1383091,111000.0,110990.0,0.01478]
[1760171092592,0.1383091,111000.0,110990.0,0.01378]
[1760171092993,0.0900168,110990.0,110980.0,0.37458]
[1760171093195,0.48124511,110990.0,110980.0,0.37458]
[1760171095499,0.84204511,110990.0,110980.0,0.01378]
[1760171095689,0.090033,110970.0,110960.0,0.33322791]
[1760171095894,0.80986872,110970.0,110960.0,0.01271]
[1760171096096,0.0900411,110960.0,110950.0,0.05812861]
[1760171096297,0.4508411,110960.0,110950.0,0.00010659]
[1760171096594,0.8508411,110960.0,110950.0,9e-08]
[1760171096796,0.0900573,110940.0,110930.0,0.40591569]
[1760171096995,0.44909302,110940.0,110930.0,0.3608]
[1760171097200,0.99859302,110940.0,110930.0,0.3608]
[1760171097396,0.0900736,110920.0,110910.0,0.01271]
[1760171097893,0.80997393,110920.0,110910.0,0.01271]
[1760171099394,0.44917393,110920.0,110910.0,0.01271]
[1760171099597,0.0900817,110910.0,110900.0,0.41899047]
[1760171099798,0.44911742,110910.0,110900.0,0.41899047]
[1760171100200,0.44911742,110910.0,110900.0,0.81899047]
[1760171100901,0.44911742,110910.0,110900.0,0.84188047]
[1760171101096,0.44911742,110910.0,110900.0,0.01271]
[1760171101396,0.81000329,110910.0,110900.0,0.01271]
[1760171101896,0.81100329,110910.0,110900.0,0.01271]
[1760171102091,0.45020329,110910.0,110900.0,0.01271]
[1760171102496,0.81100329,110910.0,110900.0,0.01271]
[1760171102701,0.45020329,110910.0,110900.0,0.0356]
[1760171102897,0.45020329,110910.0,110900.0,0.3964]
[1760171103506,0.09116757,110910.0,110900.0,0.8754]
[1760171105002,0.09116757,110910.0,110900.0,0.7954]
[1760171105707,0.09116757,110910.0,110900.0,0.8054]
[1760171106007,0.09116757,110910.0,110900.0,0.4054]
[1760171106207,0.09116757,110910.0,110900.0,0.8054]
[1760171106404,0.3608,110940.0,110900.0,0.8054]
[1760171106604,0.4508548,110950.0,110940.0,0.0356]
[1760171106802,0.11011097,110950.0,110940.0,0.0356]
[1760171106998,0.0900548,110950.0,110940.0,0.3964]
[1760171107704,0.0900548,110950.0,110940.0,0.7964]
[1760171107899,0.11011231,110950.0,110940.0,0.4356]
[1760171108102,0.11011231,110950.0,110940.0,0.7964]
[1760171108604,0.11111231,110950.0,110940.0,0.7964]
[1760171108801,0.45009052,110950.0,110940.0,0.37351]
[1760171109006,0.83095426,110950.0,110940.0,0.01271]
[1760171109605,0.47015426,110950.0,110940.0,0.01271]
[1760171110107,0.83095426,110950.0,110940.0,0.01271]
[1760171110404,0.83095426,110950.0,110940.0,0.3964]
[1760171110405,0.47015426,110950.0,110940.0,0.3964]
[1760171110606,0.47015426,110950.0,110940.0,0.0356]
[1760171110908,0.83095426,110950.0,110940.0,0.01271]
[1760171111109,1.23095426,110950.0,110940.0,0.01271]
[1760171111506,0.87015426,110950.0,110940.0,0.01271]
[1760171111710,1.23095426,110950.0,110940.0,0.01271]
[1760171111913,0.0900573,110940.0,110930.0,0.01271]
[1760171112111,0.0900654,110930.0,110920.0,0.01271]
[1760171112313,0.44910112,110930.0,110920.0,0.01271]
[1760171112911,0.86932014,110930.0,110920.0,0.01271]
[1760171114418,0.46932014,110930.0,110920.0,0.01271]
[1760171115606,1.5900736,110920.0,110910.0,0.37351]
[1760171116410,1.96937434,110920.0,110910.0,0.37351]
[1760171116610,1.94910932,110920.0,110910.0,0.0356]
[1760171116813,1.96957917,110920.0,110910.0,0.0356]
[1760171117214,1.5900736,110920.0,110910.0,0.7964]
[1760171117416,1.61055939,110920.0,110910.0,0.7964]
[1760171117616,1.5900736,110920.0,110910.0,0.9264]
[1760171118110,1.5900736,110920.0,110910.0,0.3964]
[1760171118315,1.61058246,110920.0,110910.0,0.7964]
[1760171118521,1.5900736,110920.0,110910.0,0.7964]
[1760171118721,1.5910736,110920.0,110910.0,0.9364]
[1760171120022,1.61160756,110920.0,110910.0,0.3964]
[1760171120724,1.61160756,110920.0,110910.0,0.8164]
[1760171120926,1.61060756,110920.0,110910.0,0.8164]
[1760171121621,1.61060756,110920.0,110910.0,0.4164]
[1760171122430,1.61060756,110920.0,110910.0,0.8164]
[1760171125026,1.61060756,110920.0,110910.0,0.4164]
[1760171125629,1.76010756,110920.0,110910.0,0.4164]
[1760171125832,1.61060756,110920.0,110910.0,0.4164]
[1760171127727,1.61060756,110920.0,110910.0,0.8164]
[1760171129327,1.64277589,110920.0,110910.0,0.8164]
[1760171130028,1.56373589,110920.0,110910.0,0.8164]
[1760171130233,0.0900556,110940.0,110930.0,0.03531]
[1760171130432,0.0900556,110940.0,110930.0,0.88691]
[1760171130624,0.0900556,110940.0,110930.0,1.3769738]
[1760171130830,0.16529979,110960.0,110950.0,0.03496]
[1760171131030,0.0845929,110960.0,110950.0,0.52576]
[1760171132029,0.13295512,110980.0,110970.0,0.03531]
[1760171132228,0.13295512,110980.0,110970.0,0.86205934]
[1760171132535,0.0900232,110980.0,110970.0,0.86205934]
[1760171133329,0.06705924,110980.0,110970.0,1.26205934]
[1760171134030,0.06905924,110980.0,110970.0,1.26205934]
[1760171134431,0.06905924,110980.0,110970.0,1.30789595]
[1760171137727,0.06905924,110980.0,110970.0,1.72969537]
[1760171138030,0.06705924,110980.0,110970.0,1.72969537]
[1760171138230,0.06805924,110980.0,110970.0,1.72969537]
[1760171138636,0.06805924,110980.0,110970.0,1.30789595]
[1760171139433,0.06805924,110980.0,110970.0,0.90789595]
[1760171140237,0.13278521,110980.0,110970.0,0.90789595]
[1760171140837,0.06805924,110980.0,110970.0,0.90789595]
[1760171141032,0.13278521,110980.0,110970.0,0.90789595]
[1760171142837,0.06805924,110980.0,110970.0,0.41709595]
[1760171143043,0.13278628,110980.0,110970.0,1.17789595]
[1760171143244,0.13278628,110980.0,110970.0,1.18789595]
[1760171145043,0.11499965,110980.0,110970.0,1.18789595]
[1760171145745,0.15057965,110980.0,110970.0,0.78789595]
[1760171145938,0.57237907,110980.0,110970.0,0.77789595]
[1760171146140,0.50765203,110980.0,110970.0,0.79789595]
[1760171146444,0.97238361,110980.0,110970.0,0.79789595]
[1760171146642,0.97238378,110980.0,110970.0,0.79789595]
[1760171147046,0.15058436,110980.0,110970.0,0.79789595]
[1760171147644,0.12822436,110980.0,110970.0,0.79789595]
[1760171148236,0.15058436,110980.0,110970.0,0.79789595]
[1760171148442,0.97238378,110980.0,110970.0,0.79789595]
[1760171149242,0.55058436,110980.0,110970.0,0.79789595]
[1760171149442,0.11500436,110980.0,110970.0,0.79789595]
[1760171150946,0.06349261,110980.0,110970.0,0.79789595]
[1760171152544,0.11500436,110980.0,110970.0,0.79789595]
[1760171154147,0.05027261,110980.0,110970.0,0.79789595]
[1760171154346,0.11500436,110980.0,110970.0,0.79789595]
[1760171154851,0.05027261,110980.0,110970.0,0.79789595]
[1760171156643,0.11500436,110980.0,110970.0,0.79789595]
[1760171157047,0.05027261,110980.0,110970.0,0.79789595]
[1760171157345,0.06473175,110990.0,110980.0,0.01314]
[1760171157545,0.0770974,111000.0,110990.0,0.00822]
[1760171157744,0.20236865,111020.0,111010.0,0.0302]
[1760171157745,0.20236885,111020.0,111010.0,0.0302]
[1760171158050,0.20236885,111020.0,111010.0,0.8818]
[1760171158354,0.0899915,111020.0,111010.0,1.2818]
[1760171158849,0.0899915,111020.0,111010.0,1.70359942]
[1760171159245,0.06873653,111020.0,111010.0,1.79359982]
[1760171159552,0.0899761,111040.0,111030.0,0.02198]
[1760171159748,0.26397501,111050.0,111030.0,0.8818]
[1760171159953,0.0899761,111040.0,111030.0,0.521]
[1760171160153,0.12230932,111040.0,111030.0,0.8818]
[1760171160549,0.12230932,111040.0,111030.0,0.87358]
[1760171160757,0.12330932,111040.0,111030.0,1.71627334]
[1760171160947,0.12330932,111040.0,111030.0,1.29447392]
[1760171161152,0.0909761,111040.0,111030.0,1.2818]
[1760171162552,0.0909761,111040.0,111030.0,0.9717846]
[1760171162752,0.04851367,111070.0,111060.0,0.01314]
[1760171162954,0.076476,111090.0,111070.0,0.1201464]
[1760171163157,0.076476,111090.0,111080.0,0.74358]
[1760171163451,0.111436,111090.0,111080.0,0.86358]
[1760171163659,0.111436,111090.0,111080.0,0.50278]
[1760171163849,0.511436,111090.0,111080.0,0.38278]
[1760171164053,0.511436,111090.0,111080.0,0.03198]
[1760171164352,0.476476,111090.0,111080.0,0.39278]
[1760171164657,0.476476,111090.0,111080.0,0.43854001]
[1760171165450,0.476476,111090.0,111080.0,0.42854001]
[1760171165658,0.476476,111090.0,111080.0,0.44854001]
[1760171166257,0.511436,111090.0,111080.0,0.44854001]
[1760171166453,0.511436,111090.0,111080.0,0.42854001]
[1760171166860,0.511436,111090.0,111080.0,0.43854001]
[1760171170049,0.511436,111090.0,111070.0,0.3608]
[1760171170050,0.1249039,111080.0,111070.0,0.3608]
[1760171170255,0.03496,111090.0,111080.0,0.02198]
[1760171170555,0.1248973,111090.0,111080.0,0.39278]
[1760171171254,0.0899373,111090.0,111080.0,0.39278]
[1760171171456,0.1029704,111100.0,111080.0,0.80592]
[1760171171659,0.1029704,111100.0,111090.0,0.38278]
[1760171171860,0.1029704,111100.0,111090.0,0.41278]
[1760171172160,0.06918918,111110.0,111090.0,0.821]
[1760171172356,0.06918918,111110.0,111100.0,0.391]
[1760171172556,0.01304,111120.0,111100.0,0.501]
[1760171172758,0.0899116,111120.0,111110.0,0.38278]
[1760171172956,0.1029477,111130.0,111110.0,0.50278]
[1760171173161,0.0898726,111170.0,111110.0,0.50278]
[1760171173162,0.01304,111170.0,111150.0,0.089882]
[1760171173356,0.09813343,111180.0,111160.0,0.81771942]
[1760171173556,0.0898649,111180.0,111170.0,0.3608]
[1760171173759,0.0898649,111180.0,111170.0,0.4908]
[1760171173956,0.0888649,111180.0,111170.0,0.4908]
[1760171174366,0.1028986,111190.0,111170.0,0.49902]
[1760171174566,0.0898586,111190.0,111180.0,0.3608]
[1760171174861,0.0898586,111190.0,111180.0,0.3908]
[1760171175263,0.0898586,111190.0,111180.0,0.43542855]
[1760171176364,0.0898586,111190.0,111180.0,0.45740855]
[1760171177663,0.1248186,111190.0,111180.0,0.45740855]
[1760171180164,0.5248186,111190.0,111180.0,0.40542855]
[1760171181061,1.30741802,111190.0,111180.0,0.04462855]
[1760171181270,0.1248386,111160.0,111150.0,0.3608]
[1760171181664,0.1248466,111150.0,111140.0,0.38278]
[1760171181965,0.1248547,111140.0,111130.0,0.38278]
[1760171182167,0.0898947,111140.0,111130.0,0.75358]
[1760171182363,0.54665412,111140.0,111130.0,0.7216]
[1760171182564,0.124879,111110.0,111100.0,0.0220875]
[1760171182764,0.52475842,111110.0,111100.0,0.0001075]
[1760171182961,1.28555842,111110.0,111100.0,0.0001075]
[1760171183159,0.92475842,111110.0,111100.0,0.0001075]
[1760171183362,0.92475842,111110.0,111100.0,0.04403411]
[1760171183566,0.1027071,111100.0,111090.0,0.3608]
[1760171184270,0.52450652,111100.0,111090.0,0.3608]
[1760171184469,0.52459567,111100.0,111090.0,0.40545692]
[1760171184662,1.28539567,111100.0,111090.0,0.04465692]
[1760171184864,0.0899352,111090.0,111080.0,0.3608]
[1760171185064,0.1027152,111090.0,111080.0,0.3808]
[1760171185660,0.1027152,111090.0,111080.0,0.42663458]
[1760171185866,0.0899352,111090.0,111080.0,0.82663458]
[1760171186069,0.0899241,111110.0,111090.0,0.0135]
[1760171186363,0.0725341,111110.0,111100.0,0.7351]
[1760171186568,0.05998616,111110.0,111100.0,0.8351]
[1760171186766,0.0899138,111120.0,111110.0,0.0135]
[1760171186964,0.0899138,111120.0,111110.0,0.4843]
[1760171187268,0.0899693,111120.0,111110.0,0.8843]
[1760171188066,0.0899693,111120.0,111110.0,0.4843]
[1760171188268,0.0899693,111120.0,111110.0,0.8843]
[1760171188464,0.57220876,111150.0,111110.0,0.8843]
[1760171188670,0.0898943,111140.0,111130.0,0.3608]
[1760171188868,0.0898943,111140.0,111130.0,0.3808]
[1760171189467,0.13763554,111140.0,111130.0,0.3808]
[1760171190072,0.15041554,111140.0,111130.0,0.3808]
[1760171190265,0.57221496,111140.0,111130.0,0.3808]
[1760171190465,0.13763554,111140.0,111130.0,0.3808]
[1760171190666,0.1026743,111140.0,111130.0,0.3808]
[1760171191370,0.1239243,111140.0,111130.0,0.3808]
[1760171191571,0.1239243,111140.0,111130.0,0.3608]
[1760171192271,0.1239243,111140.0,111130.0,0.38199]
[1760171192466,0.0898943,111140.0,111130.0,0.40549]
[1760171192673,0.0898943,111140.0,111130.0,0.80549]
[1760171193766,0.03217489,111150.0,111130.0,0.80549]
[1760171193962,0.0898862,111150.0,111140.0,0.39549]
[1760171194162,0.0898862,111150.0,111140.0,0.44549]
[1760171194365,0.1111362,111150.0,111140.0,0.43199]
[1760171194972,0.0898862,111150.0,111140.0,0.44549]
[1760171196466,0.0898862,111150.0,111140.0,0.84549]
[1760171196874,0.0898862,111150.0,111140.0,0.44549]
[1760171198073,0.0898862,111150.0,111140.0,0.84549]
[1760171198775,0.1111362,111150.0,111140.0,0.44549]
[1760171198966,0.5239162,111150.0,111140.0,0.4108]
[1760171199171,0.5239162,111150.0,111140.0,0.05]
[1760171199475,0.8847162,111150.0,111140.0,0.05]
[1760171199871,0.112421,111120.0,111110.0,0.39745]
[1760171200070,0.112421,111120.0,111110.0,0.53745]
[1760171200271,0.112421,111120.0,111110.0,0.52395]
[1760171200272,0.125431,111120.0,111110.0,0.52395]
[1760171200473,0.125431,111120.0,111110.0,0.5008]
[1760171200667,0.88353914,111120.0,111110.0,0.5008]
[1760171201074,1.22182914,111120.0,111110.0,0.14]
[1760171201469,0.1029452,111090.0,111080.0,0.60521569]
[1760171201775,0.1029452,111090.0,111080.0,0.41521569]
[1760171202775,0.0899352,111090.0,111080.0,0.41521569]
[1760171203079,0.01301,111110.0,111080.0,0.82861569]
[1760171203272,0.01301,111110.0,111090.0,0.3608]
[1760171203477,0.0899278,111100.0,111090.0,0.4808]
[1760171203977,0.0899278,111100.0,111090.0,0.51735]
[1760171204276,0.1254478,111100.0,111090.0,0.50395]
[1760171204469,0.1254478,111100.0,111090.0,0.4808]
[1760171204674,0.5254478,111100.0,111090.0,0.12]
[1760171205469,0.88355594,111100.0,111090.0,0.12]
[1760171205669,0.1254478,111100.0,111090.0,0.14315]
[1760171205874,0.1254478,111100.0,111090.0,0.12]
[1760171206281,0.88355594,111100.0,111090.0,0.12]
[1760171207678,1.24435594,111100.0,111090.0,0.12]
[1760171208473,0.125472,111070.0,111060.0,0.5608]
[1760171208678,0.125472,111070.0,111060.0,0.45877587]
[1760171208879,0.125472,111070.0,111060.0,0.43562587]
[1760171209580,0.112462,111070.0,111060.0,0.45877587]
[1760171211185,0.125472,111070.0,111060.0,0.45877587]
[1760171212581,0.125472,111070.0,111060.0,0.43562587]
[1760171213784,0.525472,111070.0,111060.0,0.43562587]
[1760171215487,0.525472,111070.0,111060.0,0.45679587]
[1760171215683,0.674972,111070.0,111060.0,0.43562587]
[1760171215882,0.525472,111070.0,111060.0,0.43562587]
[1760171216287,0.1255101,111060.0,111050.0,0.3608]
[1760171216489,0.48361824,111060.0,111050.0,0.13]
[1760171217492,0.48361824,111060.0,111050.0,0.4908]
[1760171218089,0.48361824,111060.0,111050.0,0.53580484]
[1760171218786,0.48461824,111060.0,111050.0,0.53580484]
[1760171219891,0.88461824,111060.0,111050.0,0.53580484]
[1760171220091,0.5265101,111060.0,111050.0,0.53580484]
[1760171221289,0.5265101,111060.0,111050.0,0.04500484]
[1760171221488,0.1255182,111050.0,111040.0,7.204e-05]
[1760171221689,0.84442634,111050.0,111040.0,0.04500955]
[1760171221988,0.84442634,111050.0,111040.0,7.204e-05]
[1760171222387,0.84442634,111050.0,111010.0,0.01274]
[1760171222388,0.1255425,111020.0,111010.0,0.3608]
[1760171222583,0.1255425,111020.0,111010.0,0.39197]
[1760171223089,0.1255425,111020.0,111010.0,0.38197]
[1760171223293,0.12561015,111020.0,111010.0,0.3608]
[1760171223688,0.12561015,111020.0,111000.0,0.3608]
[1760171223689,0.1255506,111010.0,111000.0,0.3608]
[1760171223897,0.1255506,111010.0,111000.0,0.40553949]
[1760171224090,0.88365874,111010.0,111000.0,0.04473949]
[1760171224393,1.6255587,111000.0,110990.0,0.3608]
[1760171224889,1.62563074,111000.0,110990.0,0.3608]
[1760171225192,1.62563074,111000.0,110980.0,0.3608]
[1760171225193,0.1245668,110990.0,110980.0,0.3608]
[1760171225394,0.48267494,110990.0,110980.0,0.3608]
[1760171225889,0.1245668,110990.0,110980.0,0.3608]
[1760171226191,0.48267494,110990.0,110980.0,0.3608]
[1760171226388,0.48267494,110990.0,110960.0,8.917e-05]
[1760171226389,0.1255831,110970.0,110960.0,8.917e-05]
[1760171226590,0.1255831,110970.0,110960.0,0.40632173]
[1760171226591,0.12565514,110970.0,110960.0,0.40632173]
[1760171226786,0.11270514,110970.0,110960.0,0.43749173]
[1760171226984,0.09010514,110970.0,110960.0,0.85023173]
[1760171227188,0.0900331,110970.0,110960.0,0.85023173]
[1760171229191,0.0900331,110970.0,110960.0,0.45023173]
[1760171229498,0.1126331,110970.0,110960.0,0.43749173]
[1760171229696,0.1255831,110970.0,110960.0,0.43749173]
[1760171230293,0.1255831,110970.0,110960.0,0.40632173]
[1760171230502,0.48369124,110970.0,110960.0,0.40632173]
[1760171230998,0.1255831,110970.0,110960.0,0.42749173]
[1760171231192,0.1126331,110970.0,110960.0,0.42749173]
[1760171231590,0.1255831,110970.0,110960.0,0.42749173]
[1760171231992,0.1126331,110970.0,110960.0,0.43749173]
[1760171232201,0.0900331,110970.0,110960.0,0.85023173]
[1760171232598,0.1126331,110970.0,110960.0,0.45023173]
[1760171233092,0.1126331,110970.0,110960.0,0.43749173]
[1760171233298,0.1255831,110970.0,110960.0,0.43749173]
[1760171235306,0.48369124,110970.0,110960.0,0.40632173]
[1760171236403,0.48369124,110970.0,110960.0,0.42749173]
[1760171236404,0.1255831,110970.0,110960.0,0.42749173]
[1760171236906,0.1255831,110970.0,110960.0,0.40632173]
[1760171237108,0.88369124,110970.0,110960.0,0.40632173]
[1760171240802,1.03319124,110970.0,110960.0,0.40632173]
[1760171241007,0.88369124,110970.0,110960.0,0.40632173]
[1760171241208,0.88369124,110970.0,110960.0,0.42749173]
[1760171241409,0.88369124,110970.0,110960.0,0.40632173]
[1760171242000,0.93617461,110970.0,110960.0,0.04552173]
[1760171242308,0.93617461,110970.0,110950.0,0.3608]
[1760171242309,0.1255914,110960.0,110950.0,0.3608]
[1760171242603,0.22638422,110960.0,110950.0,0.3608]
[1760171242806,0.1255995,110950.0,110940.0,0.3608]
[1760171243006,0.53616692,110950.0,110940.0,0.3608]
[1760171243201,0.14592559,110950.0,110940.0,0.40597187]
[1760171245611,0.14592559,110950.0,110940.0,0.42818187]
[1760171245812,0.14592559,110950.0,110940.0,0.40597187]
[1760171250111,0.0900435,110960.0,110940.0,0.88181187]
[1760171250311,0.4900403,110970.0,110960.0,0.03584]
[1760171250607,0.4900403,110970.0,110960.0,0.40664]
[1760171250813,0.4,110970.0,110960.0,0.80664]
[1760171251812,0.4900333,110970.0,110960.0,0.80664]
[1760171252707,0.17558436,110970.0,110960.0,0.8966814]
[1760171252907,0.0900213,110990.0,110980.0,0.01231]
[1760171253111,0.0900213,110990.0,110980.0,0.85391]
[1760171253312,0.0900213,110990.0,110980.0,1.25391]
[1760171254309,0.0910213,110990.0,110980.0,1.25391]
[1760171254505,0.0910213,110990.0,110980.0,0.85391]
[1760171255509,0.0910213,110990.0,110980.0,1.67558156]
[1760171255708,0.08701188,110990.0,110980.0,1.25391]
[1760171257211,0.08701188,110990.0,110980.0,1.67558156]
[1760171258510,0.08701188,110990.0,110980.0,1.25391]
[1760171260712,0.12209188,110990.0,110980.0,0.85391]
[1760171261708,0.52209188,110990.0,110980.0,0.85391]
[1760171261912,0.52209188,110990.0,110980.0,0.8416]
[1760171261913,0.94376344,110990.0,110980.0,0.8416]
[1760171262116,0.94376344,110990.0,110980.0,0.7216]
[1760171262310,0.0900315,110980.0,110970.0,0.3608]
[1760171262516,0.0900315,110980.0,110970.0,0.37311]
[1760171262517,0.1251115,110980.0,110970.0,0.37311]
[1760171263315,0.94678306,110980.0,110970.0,0.3608]
[1760171263510,0.5251115,110980.0,110970.0,0.3608]
[1760171263715,0.94678306,110980.0,110970.0,0.3608]
[1760171264617,0.1251133,110970.0,110960.0,0.37311]
[1760171264922,0.1251133,110970.0,110960.0,0.38311]
[1760171265124,0.1039133,110970.0,110960.0,0.74391]
[1760171265616,0.0900266,110980.0,110960.0,1.1516]
[1760171265822,0.0900266,110980.0,110970.0,0.37311]
[1760171266119,0.0900153,111000.0,110990.0,0.01231]
[1760171266317,0.0680029,111000.0,110990.0,0.86085]
[1760171266520,0.0680029,111000.0,110990.0,1.26085]
[1760171266915,0.0680029,111000.0,110990.0,0.85391]
[1760171267521,0.5030829,111000.0,110990.0,0.85391]
[1760171267721,0.92475446,111000.0,110990.0,0.3608]
[1760171268120,0.5030829,111000.0,110990.0,0.38211]
[1760171268525,0.1030829,111000.0,110990.0,0.38211]
[1760171268827,0.1040829,111000.0,110990.0,0.38211]
[1760171269225,0.0690029,111000.0,110990.0,0.38211]
[1760171269528,0.0680029,111000.0,110990.0,0.39211]
[1760171270418,0.1030829,111000.0,110990.0,0.38211]
[1760171270623,0.52475446,111000.0,110990.0,0.38211]
[1760171270824,0.92475446,111000.0,110990.0,0.38211]
[1760171273026,0.92475446,111000.0,110990.0,0.3608]
[1760171273224,0.97319093,111000.0,110950.0,0.00694]
[1760171273432,0.54823636,110980.0,110970.0,0.3608]
[1760171273630,0.1265648,110980.0,110970.0,0.39281]
[1760171275331,0.54823636,110980.0,110970.0,0.3708]
[1760171275727,0.94823636,110980.0,110970.0,0.3608]
[1760171275934,0.1265811,110960.0,110950.0,0.38381]
[1760171276229,0.1265811,110960.0,110950.0,0.39281]
[1760171277028,0.1265811,110960.0,110950.0,0.39381]
[1760171277428,0.54825266,110960.0,110950.0,0.39381]
[1760171278629,0.1033411,110960.0,110950.0,0.75461]
[1760171278825,0.54825266,110960.0,110950.0,0.7326]
[1760171279031,0.94825266,110960.0,110950.0,0.7226]
[1760171279531,0.1265892,110950.0,110940.0,0.40597187]
[1760171279736,0.56851294,110950.0,110940.0,0.40597187]
[1760171280637,0.56851294,110950.0,110940.0,0.42898187]
[1760171281031,0.11030138,110950.0,110940.0,1.21672187]
[1760171281938,0.11030138,110950.0,110940.0,0.81672187]
[1760171282135,0.11030088,110950.0,110940.0,1.21672187]
[1760171282632,0.11030038,110950.0,110940.0,1.21672187]
[1760171282832,0.18412607,110980.0,110970.0,0.02201]
[1760171283036,0.1223896,110980.0,110970.0,0.39281]
[1760171283833,0.126572,110970.0,110960.0,0.38281]
[1760171284037,0.54824356,110970.0,110960.0,0.38281]
[1760171284235,0.1589368,110970.0,110960.0,0.38281]
[1760171284438,0.126572,110970.0,110960.0,0.38281]
[1760171285633,0.54824356,110970.0,110960.0,0.38281]
[1760171285835,0.126572,110970.0,110960.0,0.38281]
[1760171286338,0.090032,110970.0,110960.0,0.38281]
[1760171286535,0.090032,110970.0,110960.0,0.74361]
[1760171286739,0.126572,110970.0,110960.0,0.74361]